{"text_format":"3","workbook":"xlsx","n_sheets":3,"sheets":["Данни за потенциален клиент","Прогнозни продажби ","Месечна претеглена прогноза"],"not_rendered":{"charts":1,"defined_names":10},"read":"whole","date_system":"1900"}

{"sheet":"Данни за потенциален клиент","index":0,"n_rows":9,"n_cols":10,"rows_kept":9,"merged":[[3,1,3,8]]}
[null,"Име на фирма"]
[null,"Подробно проследяване на потенциални клиенти"]
[null,{"$f":"TODAY()","v":"2018-07-24"}]
[null,{"$f":"Име_на_фирма","v":"Име на фирма"},{"$nulls":7},"ПОВЕРИТЕЛНО"]
[null,"Име на потенциален клиент","Връзка с потенциален клиент","Потенциален клиент \nИзточник","Потенциален клиент \nРегион","Тип потенциален клиент","Потенциална възможност","Шанс за продажба","Прогноза \nЗатвори","Претеглена \nПрогноза"]
[null,"A. Datum Corporation",{"$nulls":3},"Стратегически",{"v":300000,"d":"300,000.00 лв."},{"v":0.9,"d":"90%"},"януари",{"$f":"IFERROR(IF(ДанниЗаПотенциаленКлиент[Шанс за продажба]<>\"\",ДанниЗаПотенциаленКлиент[Шанс за продажба]*ДанниЗаПотенциаленКлиент[Потенциална възможност],\"\"),\"\")","v":{"v":270000,"d":"270,000.00 лв."}}]
[null,"Adventure Works",{"$nulls":3},"Стратегически",{"v":200000,"d":"200,000.00 лв."},{"v":0.1,"d":"10%"},"февруари",{"$f":"IFERROR(IF(ДанниЗаПотенциаленКлиент[Шанс за продажба]<>\"\",ДанниЗаПотенциаленКлиент[Шанс за продажба]*ДанниЗаПотенциаленКлиент[Потенциална възможност],\"\"),\"\")","v":{"v":20000,"d":"20,000.00 лв."}}]
[null,"Alpine Ski House",{"$nulls":3},"Тактически",{"v":100000,"d":"100,000.00 лв."},{"v":0.2,"d":"20%"},"март",{"$f":"IFERROR(IF(ДанниЗаПотенциаленКлиент[Шанс за продажба]<>\"\",ДанниЗаПотенциаленКлиент[Шанс за продажба]*ДанниЗаПотенциаленКлиент[Потенциална възможност],\"\"),\"\")","v":{"v":20000,"d":"20,000.00 лв."}}]
[null,"Общо",{"$nulls":4},{"$f":"SUBTOTAL(109,ДанниЗаПотенциаленКлиент[Потенциална възможност])","v":{"v":600000,"d":"600,000.00 лв."}},null,null,{"$f":"SUBTOTAL(109,ДанниЗаПотенциаленКлиент[Претеглена \nПрогноза])","v":{"v":310000,"d":"310,000.00 лв."}}]

{"sheet":"Прогнозни продажби ","index":1,"n_rows":21,"n_cols":14,"rows_kept":21,"merged":[[3,1,3,11],[3,12,3,13]]}
[null,{"$f":"Име_на_фирма","v":"Име на фирма"}]
[null,"Прогнозни продажби"]
[null,{"$f":"ДатаНаПроследяване","v":"2018-07-24"}]
[null,{"$f":"Име_на_фирма","v":"Име на фирма"},{"$nulls":10},"ПОВЕРИТЕЛНО"]
[null,"Име на потенциален клиент","януари \nПрогноза","февруари \nПрогноза","март \nПрогноза","април \nПрогноза","май \nПрогноза","юни \nПрогноза","юли \nПрогноза","август \nПрогноза","септември \nПрогноза","октомври \nПрогноза","ноември \nПрогноза","декември \nПрогноза"]
[null,{"$f":"IFERROR(IF(AND(ДанниЗаПотенциаленКлиент[Име на потенциален клиент] <> \"\", ROW(ПрогнозниПродажби[Име на потенциален клиент])<>ПоследенЗапис),ДанниЗаПотенциаленКлиент[Име на потенциален клиент], \"\"),\"\")","v":"A. Datum Corporation"},{"$f":"IFERROR(IF(ДанниЗаПотенциаленКлиент[Прогноза \nЗатвори] <>\"\",IF(ДанниЗаПотенциаленКлиент[Прогноза \nЗатвори]= \"януари\",ДанниЗаПотенциаленКлиент[Претеглена \nПрогноза],0),\"\"),\"\")","v":{"v":270000,"d":"270,000 лв."}},{"$f":"IFERROR(IF(ДанниЗаПотенциаленКлиент[Прогноза \nЗатвори] <>\"\",IF(ДанниЗаПотенциаленКлиент[Прогноза \nЗатвори] = \"февруари\",ДанниЗаПотенциаленКлиент[Претеглена \nПрогноза],0),\"\"),\"\")","v":{"v":0,"d":"0 лв."}},{"$f":"IFERROR(IF(ДанниЗаПотенциаленКлиент[Прогноза \nЗатвори] <>\"\",IF(ДанниЗаПотенциаленКлиент[Прогноза \nЗатвори] = \"март\",ДанниЗаПотенциаленКлиент[Претеглена \nПрогноза],0),\"\"),\"\")","v":{"v":0,"d":"0 лв."}},{"$f":"IFERROR(IF(ДанниЗаПотенциаленКлиент[Прогноза \nЗатвори] <>\"\",IF(ДанниЗаПотенциаленКлиент[Прогноза \nЗатвори] = \"април\",ДанниЗаПотенциаленКлиент[Претеглена \nПрогноза],0),\"\"),\"\")","v":{"v":0,"d":"0 лв."}},{"$f":"IFERROR(IF(ДанниЗаПотенциаленКлиент[Прогноза \nЗатвори] <>\"\",IF(ДанниЗаПотенциаленКлиент[Прогноза \nЗатвори] = \"май\",ДанниЗаПотенциаленКлиент[Претеглена \nПрогноза],0),\"\"),\"\")","v":{"v":0,"d":"0 лв."}},{"$f":"IFERROR(IF(ДанниЗаПотенциаленКлиент[Прогноза \nЗатвори] <>\"\",IF(ДанниЗаПотенциаленКлиент[Прогноза \nЗатвори] = \"юни\",ДанниЗаПотенциаленКлиент[Претеглена \nПрогноза],0),\"\"),\"\")","v":{"v":0,"d":"0 лв."}},{"$f":"IFERROR(IF(ДанниЗаПотенциаленКлиент[Прогноза \nЗатвори] <>\"\",IF(ДанниЗаПотенциаленКлиент[Прогноза \nЗатвори] = \"юли\",ДанниЗаПотенциаленКлиент[Претеглена \nПрогноза],0),\"\"),\"\")","v":{"v":0,"d":"0 лв."}},{"$f":"IFERROR(IF(ДанниЗаПотенциаленКлиент[Прогноза \nЗатвори] <>\"\",IF(ДанниЗаПотенциаленКлиент[Прогноза \nЗатвори] = \"август\",ДанниЗаПотенциаленКлиент[Претеглена \nПрогноза],0),\"\"),\"\")","v":{"v":0,"d":"0 лв."}},{"$f":"IFERROR(IF(ДанниЗаПотенциаленКлиент[Прогноза \nЗатвори] <>\"\",IF(ДанниЗаПотенциаленКлиент[Прогноза \nЗатвори] = \"септември\",ДанниЗаПотенциаленКлиент[Претеглена \nПрогноза],0),\"\"),\"\")","v":{"v":0,"d":"0 лв."}},{"$f":"IFERROR(IF(ДанниЗаПотенциаленКлиент[Прогноза \nЗатвори] <>\"\",IF(ДанниЗаПотенциаленКлиент[Прогноза \nЗатвори] = \"октомври\",ДанниЗаПотенциаленКлиент[Претеглена \nПрогноза],0),\"\"),\"\")","v":{"v":0,"d":"0 лв."}},{"$f":"IFERROR(IF(ДанниЗаПотенциаленКлиент[Прогноза \nЗатвори] <>\"\",IF(ДанниЗаПотенциаленКлиент[Прогноза \nЗатвори] = \"ноември\",ДанниЗаПотенциаленКлиент[Претеглена \nПрогноза],0),\"\"),\"\")","v":{"v":0,"d":"0 лв."}},{"$f":"IFERROR(IF(ДанниЗаПотенциаленКлиент[Прогноза \nЗатвори] <>\"\",IF(ДанниЗаПотенциаленКлиент[Прогноза \nЗатвори] = \"декември\",ДанниЗаПотенциаленКлиент[Претеглена \nПрогноза],0),\"\"),\"\")","v":{"v":0,"d":"0 лв."}}]
[null,{"$f":"IFERROR(IF(AND(ДанниЗаПотенциаленКлиент[Име на потенциален клиент] <> \"\", ROW(ПрогнозниПродажби[Име на потенциален клиент])<>ПоследенЗапис),ДанниЗаПотенциаленКлиент[Име на потенциален клиент], \"\"),\"\")","v":"Adventure Works"},{"$f":"IFERROR(IF(ДанниЗаПотенциаленКлиент[Прогноза \nЗатвори] <>\"\",IF(ДанниЗаПотенциаленКлиент[Прогноза \nЗатвори]= \"януари\",ДанниЗаПотенциаленКлиент[Претеглена \nПрогноза],0),\"\"),\"\")","v":{"v":0,"d":"0 лв."}},{"$f":"IFERROR(IF(ДанниЗаПотенциаленКлиент[Прогноза \nЗатвори] <>\"\",IF(ДанниЗаПотенциаленКлиент[Прогноза \nЗатвори] = \"февруари\",ДанниЗаПотенциаленКлиент[Претеглена \nПрогноза],0),\"\"),\"\")","v":{"v":20000,"d":"20,000 лв."}},{"$f":"IFERROR(IF(ДанниЗаПотенциаленКлиент[Прогноза \nЗатвори] <>\"\",IF(ДанниЗаПотенциаленКлиент[Прогноза \nЗатвори] = \"март\",ДанниЗаПотенциаленКлиент[Претеглена \nПрогноза],0),\"\"),\"\")","v":{"v":0,"d":"0 лв."}},{"$f":"IFERROR(IF(ДанниЗаПотенциаленКлиент[Прогноза \nЗатвори] <>\"\",IF(ДанниЗаПотенциаленКлиент[Прогноза \nЗатвори] = \"април\",ДанниЗаПотенциаленКлиент[Претеглена \nПрогноза],0),\"\"),\"\")","v":{"v":0,"d":"0 лв."}},{"$f":"IFERROR(IF(ДанниЗаПотенциаленКлиент[Прогноза \nЗатвори] <>\"\",IF(ДанниЗаПотенциаленКлиент[Прогноза \nЗатвори] = \"май\",ДанниЗаПотенциаленКлиент[Претеглена \nПрогноза],0),\"\"),\"\")","v":{"v":0,"d":"0 лв."}},{"$f":"IFERROR(IF(ДанниЗаПотенциаленКлиент[Прогноза \nЗатвори] <>\"\",IF(ДанниЗаПотенциаленКлиент[Прогноза \nЗатвори] = \"юни\",ДанниЗаПотенциаленКлиент[Претеглена \nПрогноза],0),\"\"),\"\")","v":{"v":0,"d":"0 лв."}},{"$f":"IFERROR(IF(ДанниЗаПотенциаленКлиент[Прогноза \nЗатвори] <>\"\",IF(ДанниЗаПотенциаленКлиент[Прогноза \nЗатвори] = \"юли\",ДанниЗаПотенциаленКлиент[Претеглена \nПрогноза],0),\"\"),\"\")","v":{"v":0,"d":"0 лв."}},{"$f":"IFERROR(IF(ДанниЗаПотенциаленКлиент[Прогноза \nЗатвори] <>\"\",IF(ДанниЗаПотенциаленКлиент[Прогноза \nЗатвори] = \"август\",ДанниЗаПотенциаленКлиент[Претеглена \nПрогноза],0),\"\"),\"\")","v":{"v":0,"d":"0 лв."}},{"$f":"IFERROR(IF(ДанниЗаПотенциаленКлиент[Прогноза \nЗатвори] <>\"\",IF(ДанниЗаПотенциаленКлиент[Прогноза \nЗатвори] = \"септември\",ДанниЗаПотенциаленКлиент[Претеглена \nПрогноза],0),\"\"),\"\")","v":{"v":0,"d":"0 лв."}},{"$f":"IFERROR(IF(ДанниЗаПотенциаленКлиент[Прогноза \nЗатвори] <>\"\",IF(ДанниЗаПотенциаленКлиент[Прогноза \nЗатвори] = \"октомври\",ДанниЗаПотенциаленКлиент[Претеглена \nПрогноза],0),\"\"),\"\")","v":{"v":0,"d":"0 лв."}},{"$f":"IFERROR(IF(ДанниЗаПотенциаленКлиент[Прогноза \nЗатвори] <>\"\",IF(ДанниЗаПотенциаленКлиент[Прогноза \nЗатвори] = \"ноември\",ДанниЗаПотенциаленКлиент[Претеглена \nПрогноза],0),\"\"),\"\")","v":{"v":0,"d":"0 лв."}},{"$f":"IFERROR(IF(ДанниЗаПотенциаленКлиент[Прогноза \nЗатвори] <>\"\",IF(ДанниЗаПотенциаленКлиент[Прогноза \nЗатвори] = \"декември\",ДанниЗаПотенциаленКлиент[Претеглена \nПрогноза],0),\"\"),\"\")","v":{"v":0,"d":"0 лв."}}]
[null,{"$f":"IFERROR(IF(AND(ДанниЗаПотенциаленКлиент[Име на потенциален клиент] <> \"\", ROW(ПрогнозниПродажби[Име на потенциален клиент])<>ПоследенЗапис),ДанниЗаПотенциаленКлиент[Име на потенциален клиент], \"\"),\"\")","v":"Alpine Ski House"},{"$f":"IFERROR(IF(ДанниЗаПотенциаленКлиент[Прогноза \nЗатвори] <>\"\",IF(ДанниЗаПотенциаленКлиент[Прогноза \nЗатвори]= \"януари\",ДанниЗаПотенциаленКлиент[Претеглена \nПрогноза],0),\"\"),\"\")","v":{"v":0,"d":"0 лв."}},{"$f":"IFERROR(IF(ДанниЗаПотенциаленКлиент[Прогноза \nЗатвори] <>\"\",IF(ДанниЗаПотенциаленКлиент[Прогноза \nЗатвори] = \"февруари\",ДанниЗаПотенциаленКлиент[Претеглена \nПрогноза],0),\"\"),\"\")","v":{"v":0,"d":"0 лв."}},{"$f":"IFERROR(IF(ДанниЗаПотенциаленКлиент[Прогноза \nЗатвори] <>\"\",IF(ДанниЗаПотенциаленКлиент[Прогноза \nЗатвори] = \"март\",ДанниЗаПотенциаленКлиент[Претеглена \nПрогноза],0),\"\"),\"\")","v":{"v":20000,"d":"20,000 лв."}},{"$f":"IFERROR(IF(ДанниЗаПотенциаленКлиент[Прогноза \nЗатвори] <>\"\",IF(ДанниЗаПотенциаленКлиент[Прогноза \nЗатвори] = \"април\",ДанниЗаПотенциаленКлиент[Претеглена \nПрогноза],0),\"\"),\"\")","v":{"v":0,"d":"0 лв."}},{"$f":"IFERROR(IF(ДанниЗаПотенциаленКлиент[Прогноза \nЗатвори] <>\"\",IF(ДанниЗаПотенциаленКлиент[Прогноза \nЗатвори] = \"май\",ДанниЗаПотенциаленКлиент[Претеглена \nПрогноза],0),\"\"),\"\")","v":{"v":0,"d":"0 лв."}},{"$f":"IFERROR(IF(ДанниЗаПотенциаленКлиент[Прогноза \nЗатвори] <>\"\",IF(ДанниЗаПотенциаленКлиент[Прогноза \nЗатвори] = \"юни\",ДанниЗаПотенциаленКлиент[Претеглена \nПрогноза],0),\"\"),\"\")","v":{"v":0,"d":"0 лв."}},{"$f":"IFERROR(IF(ДанниЗаПотенциаленКлиент[Прогноза \nЗатвори] <>\"\",IF(ДанниЗаПотенциаленКлиент[Прогноза \nЗатвори] = \"юли\",ДанниЗаПотенциаленКлиент[Претеглена \nПрогноза],0),\"\"),\"\")","v":{"v":0,"d":"0 лв."}},{"$f":"IFERROR(IF(ДанниЗаПотенциаленКлиент[Прогноза \nЗатвори] <>\"\",IF(ДанниЗаПотенциаленКлиент[Прогноза \nЗатвори] = \"август\",ДанниЗаПотенциаленКлиент[Претеглена \nПрогноза],0),\"\"),\"\")","v":{"v":0,"d":"0 лв."}},{"$f":"IFERROR(IF(ДанниЗаПотенциаленКлиент[Прогноза \nЗатвори] <>\"\",IF(ДанниЗаПотенциаленКлиент[Прогноза \nЗатвори] = \"септември\",ДанниЗаПотенциаленКлиент[Претеглена \nПрогноза],0),\"\"),\"\")","v":{"v":0,"d":"0 лв."}},{"$f":"IFERROR(IF(ДанниЗаПотенциаленКлиент[Прогноза \nЗатвори] <>\"\",IF(ДанниЗаПотенциаленКлиент[Прогноза \nЗатвори] = \"октомври\",ДанниЗаПотенциаленКлиент[Претеглена \nПрогноза],0),\"\"),\"\")","v":{"v":0,"d":"0 лв."}},{"$f":"IFERROR(IF(ДанниЗаПотенциаленКлиент[Прогноза \nЗатвори] <>\"\",IF(ДанниЗаПотенциаленКлиент[Прогноза \nЗатвори] = \"ноември\",ДанниЗаПотенциаленКлиент[Претеглена \nПрогноза],0),\"\"),\"\")","v":{"v":0,"d":"0 лв."}},{"$f":"IFERROR(IF(ДанниЗаПотенциаленКлиент[Прогноза \nЗатвори] <>\"\",IF(ДанниЗаПотенциаленКлиент[Прогноза \nЗатвори] = \"декември\",ДанниЗаПотенциаленКлиент[Претеглена \nПрогноза],0),\"\"),\"\")","v":{"v":0,"d":"0 лв."}}]
[null,{"$f":"IFERROR(IF(AND(ДанниЗаПотенциаленКлиент[Име на потенциален клиент] <> \"\", ROW(ПрогнозниПродажби[Име на потенциален клиент])<>ПоследенЗапис),ДанниЗаПотенциаленКлиент[Име на потенциален клиент], \"\"),\"\")","v":""},{"$f":"IFERROR(IF(ДанниЗаПотенциаленКлиент[Прогноза \nЗатвори] <>\"\",IF(ДанниЗаПотенциаленКлиент[Прогноза \nЗатвори]= \"януари\",ДанниЗаПотенциаленКлиент[Претеглена \nПрогноза],0),\"\"),\"\")","v":""},{"$f":"IFERROR(IF(ДанниЗаПотенциаленКлиент[Прогноза \nЗатвори] <>\"\",IF(ДанниЗаПотенциаленКлиент[Прогноза \nЗатвори] = \"февруари\",ДанниЗаПотенциаленКлиент[Претеглена \nПрогноза],0),\"\"),\"\")","v":""},{"$f":"IFERROR(IF(ДанниЗаПотенциаленКлиент[Прогноза \nЗатвори] <>\"\",IF(ДанниЗаПотенциаленКлиент[Прогноза \nЗатвори] = \"март\",ДанниЗаПотенциаленКлиент[Претеглена \nПрогноза],0),\"\"),\"\")","v":""},{"$f":"IFERROR(IF(ДанниЗаПотенциаленКлиент[Прогноза \nЗатвори] <>\"\",IF(ДанниЗаПотенциаленКлиент[Прогноза \nЗатвори] = \"април\",ДанниЗаПотенциаленКлиент[Претеглена \nПрогноза],0),\"\"),\"\")","v":""},{"$f":"IFERROR(IF(ДанниЗаПотенциаленКлиент[Прогноза \nЗатвори] <>\"\",IF(ДанниЗаПотенциаленКлиент[Прогноза \nЗатвори] = \"май\",ДанниЗаПотенциаленКлиент[Претеглена \nПрогноза],0),\"\"),\"\")","v":""},{"$f":"IFERROR(IF(ДанниЗаПотенциаленКлиент[Прогноза \nЗатвори] <>\"\",IF(ДанниЗаПотенциаленКлиент[Прогноза \nЗатвори] = \"юни\",ДанниЗаПотенциаленКлиент[Претеглена \nПрогноза],0),\"\"),\"\")","v":""},{"$f":"IFERROR(IF(ДанниЗаПотенциаленКлиент[Прогноза \nЗатвори] <>\"\",IF(ДанниЗаПотенциаленКлиент[Прогноза \nЗатвори] = \"юли\",ДанниЗаПотенциаленКлиент[Претеглена \nПрогноза],0),\"\"),\"\")","v":""},{"$f":"IFERROR(IF(ДанниЗаПотенциаленКлиент[Прогноза \nЗатвори] <>\"\",IF(ДанниЗаПотенциаленКлиент[Прогноза \nЗатвори] = \"август\",ДанниЗаПотенциаленКлиент[Претеглена \nПрогноза],0),\"\"),\"\")","v":""},{"$f":"IFERROR(IF(ДанниЗаПотенциаленКлиент[Прогноза \nЗатвори] <>\"\",IF(ДанниЗаПотенциаленКлиент[Прогноза \nЗатвори] = \"септември\",ДанниЗаПотенциаленКлиент[Претеглена \nПрогноза],0),\"\"),\"\")","v":""},{"$f":"IFERROR(IF(ДанниЗаПотенциаленКлиент[Прогноза \nЗатвори] <>\"\",IF(ДанниЗаПотенциаленКлиент[Прогноза \nЗатвори] = \"октомври\",ДанниЗаПотенциаленКлиент[Претеглена \nПрогноза],0),\"\"),\"\")","v":""},{"$f":"IFERROR(IF(ДанниЗаПотенциаленКлиент[Прогноза \nЗатвори] <>\"\",IF(ДанниЗаПотенциаленКлиент[Прогноза \nЗатвори] = \"ноември\",ДанниЗаПотенциаленКлиент[Претеглена \nПрогноза],0),\"\"),\"\")","v":""},{"$f":"IFERROR(IF(ДанниЗаПотенциаленКлиент[Прогноза \nЗатвори] <>\"\",IF(ДанниЗаПотенциаленКлиент[Прогноза \nЗатвори] = \"декември\",ДанниЗаПотенциаленКлиент[Претеглена \nПрогноза],0),\"\"),\"\")","v":""}]
[null,{"$f":"IFERROR(IF(AND(ДанниЗаПотенциаленКлиент[Име на потенциален клиент] <> \"\", ROW(ПрогнозниПродажби[Име на потенциален клиент])<>ПоследенЗапис),ДанниЗаПотенциаленКлиент[Име на потенциален клиент], \"\"),\"\")","v":""},{"$f":"IFERROR(IF(ДанниЗаПотенциаленКлиент[Прогноза \nЗатвори] <>\"\",IF(ДанниЗаПотенциаленКлиент[Прогноза \nЗатвори]= \"януари\",ДанниЗаПотенциаленКлиент[Претеглена \nПрогноза],0),\"\"),\"\")","v":""},{"$f":"IFERROR(IF(ДанниЗаПотенциаленКлиент[Прогноза \nЗатвори] <>\"\",IF(ДанниЗаПотенциаленКлиент[Прогноза \nЗатвори] = \"февруари\",ДанниЗаПотенциаленКлиент[Претеглена \nПрогноза],0),\"\"),\"\")","v":""},{"$f":"IFERROR(IF(ДанниЗаПотенциаленКлиент[Прогноза \nЗатвори] <>\"\",IF(ДанниЗаПотенциаленКлиент[Прогноза \nЗатвори] = \"март\",ДанниЗаПотенциаленКлиент[Претеглена \nПрогноза],0),\"\"),\"\")","v":""},{"$f":"IFERROR(IF(ДанниЗаПотенциаленКлиент[Прогноза \nЗатвори] <>\"\",IF(ДанниЗаПотенциаленКлиент[Прогноза \nЗатвори] = \"април\",ДанниЗаПотенциаленКлиент[Претеглена \nПрогноза],0),\"\"),\"\")","v":""},{"$f":"IFERROR(IF(ДанниЗаПотенциаленКлиент[Прогноза \nЗатвори] <>\"\",IF(ДанниЗаПотенциаленКлиент[Прогноза \nЗатвори] = \"май\",ДанниЗаПотенциаленКлиент[Претеглена \nПрогноза],0),\"\"),\"\")","v":""},{"$f":"IFERROR(IF(ДанниЗаПотенциаленКлиент[Прогноза \nЗатвори] <>\"\",IF(ДанниЗаПотенциаленКлиент[Прогноза \nЗатвори] = \"юни\",ДанниЗаПотенциаленКлиент[Претеглена \nПрогноза],0),\"\"),\"\")","v":""},{"$f":"IFERROR(IF(ДанниЗаПотенциаленКлиент[Прогноза \nЗатвори] <>\"\",IF(ДанниЗаПотенциаленКлиент[Прогноза \nЗатвори] = \"юли\",ДанниЗаПотенциаленКлиент[Претеглена \nПрогноза],0),\"\"),\"\")","v":""},{"$f":"IFERROR(IF(ДанниЗаПотенциаленКлиент[Прогноза \nЗатвори] <>\"\",IF(ДанниЗаПотенциаленКлиент[Прогноза \nЗатвори] = \"август\",ДанниЗаПотенциаленКлиент[Претеглена \nПрогноза],0),\"\"),\"\")","v":""},{"$f":"IFERROR(IF(ДанниЗаПотенциаленКлиент[Прогноза \nЗатвори] <>\"\",IF(ДанниЗаПотенциаленКлиент[Прогноза \nЗатвори] = \"септември\",ДанниЗаПотенциаленКлиент[Претеглена \nПрогноза],0),\"\"),\"\")","v":""},{"$f":"IFERROR(IF(ДанниЗаПотенциаленКлиент[Прогноза \nЗатвори] <>\"\",IF(ДанниЗаПотенциаленКлиент[Прогноза \nЗатвори] = \"октомври\",ДанниЗаПотенциаленКлиент[Претеглена \nПрогноза],0),\"\"),\"\")","v":""},{"$f":"IFERROR(IF(ДанниЗаПотенциаленКлиент[Прогноза \nЗатвори] <>\"\",IF(ДанниЗаПотенциаленКлиент[Прогноза \nЗатвори] = \"ноември\",ДанниЗаПотенциаленКлиент[Претеглена \nПрогноза],0),\"\"),\"\")","v":""},{"$f":"IFERROR(IF(ДанниЗаПотенциаленКлиент[Прогноза \nЗатвори] <>\"\",IF(ДанниЗаПотенциаленКлиент[Прогноза \nЗатвори] = \"декември\",ДанниЗаПотенциаленКлиент[Претеглена \nПрогноза],0),\"\"),\"\")","v":""}]
[null,{"$f":"IFERROR(IF(AND(ДанниЗаПотенциаленКлиент[Име на потенциален клиент] <> \"\", ROW(ПрогнозниПродажби[Име на потенциален клиент])<>ПоследенЗапис),ДанниЗаПотенциаленКлиент[Име на потенциален клиент], \"\"),\"\")","v":""},{"$f":"IFERROR(IF(ДанниЗаПотенциаленКлиент[Прогноза \nЗатвори] <>\"\",IF(ДанниЗаПотенциаленКлиент[Прогноза \nЗатвори]= \"януари\",ДанниЗаПотенциаленКлиент[Претеглена \nПрогноза],0),\"\"),\"\")","v":""},{"$f":"IFERROR(IF(ДанниЗаПотенциаленКлиент[Прогноза \nЗатвори] <>\"\",IF(ДанниЗаПотенциаленКлиент[Прогноза \nЗатвори] = \"февруари\",ДанниЗаПотенциаленКлиент[Претеглена \nПрогноза],0),\"\"),\"\")","v":""},{"$f":"IFERROR(IF(ДанниЗаПотенциаленКлиент[Прогноза \nЗатвори] <>\"\",IF(ДанниЗаПотенциаленКлиент[Прогноза \nЗатвори] = \"март\",ДанниЗаПотенциаленКлиент[Претеглена \nПрогноза],0),\"\"),\"\")","v":""},{"$f":"IFERROR(IF(ДанниЗаПотенциаленКлиент[Прогноза \nЗатвори] <>\"\",IF(ДанниЗаПотенциаленКлиент[Прогноза \nЗатвори] = \"април\",ДанниЗаПотенциаленКлиент[Претеглена \nПрогноза],0),\"\"),\"\")","v":""},{"$f":"IFERROR(IF(ДанниЗаПотенциаленКлиент[Прогноза \nЗатвори] <>\"\",IF(ДанниЗаПотенциаленКлиент[Прогноза \nЗатвори] = \"май\",ДанниЗаПотенциаленКлиент[Претеглена \nПрогноза],0),\"\"),\"\")","v":""},{"$f":"IFERROR(IF(ДанниЗаПотенциаленКлиент[Прогноза \nЗатвори] <>\"\",IF(ДанниЗаПотенциаленКлиент[Прогноза \nЗатвори] = \"юни\",ДанниЗаПотенциаленКлиент[Претеглена \nПрогноза],0),\"\"),\"\")","v":""},{"$f":"IFERROR(IF(ДанниЗаПотенциаленКлиент[Прогноза \nЗатвори] <>\"\",IF(ДанниЗаПотенциаленКлиент[Прогноза \nЗатвори] = \"юли\",ДанниЗаПотенциаленКлиент[Претеглена \nПрогноза],0),\"\"),\"\")","v":""},{"$f":"IFERROR(IF(ДанниЗаПотенциаленКлиент[Прогноза \nЗатвори] <>\"\",IF(ДанниЗаПотенциаленКлиент[Прогноза \nЗатвори] = \"август\",ДанниЗаПотенциаленКлиент[Претеглена \nПрогноза],0),\"\"),\"\")","v":""},{"$f":"IFERROR(IF(ДанниЗаПотенциаленКлиент[Прогноза \nЗатвори] <>\"\",IF(ДанниЗаПотенциаленКлиент[Прогноза \nЗатвори] = \"септември\",ДанниЗаПотенциаленКлиент[Претеглена \nПрогноза],0),\"\"),\"\")","v":""},{"$f":"IFERROR(IF(ДанниЗаПотенциаленКлиент[Прогноза \nЗатвори] <>\"\",IF(ДанниЗаПотенциаленКлиент[Прогноза \nЗатвори] = \"октомври\",ДанниЗаПотенциаленКлиент[Претеглена \nПрогноза],0),\"\"),\"\")","v":""},{"$f":"IFERROR(IF(ДанниЗаПотенциаленКлиент[Прогноза \nЗатвори] <>\"\",IF(ДанниЗаПотенциаленКлиент[Прогноза \nЗатвори] = \"ноември\",ДанниЗаПотенциаленКлиент[Претеглена \nПрогноза],0),\"\"),\"\")","v":""},{"$f":"IFERROR(IF(ДанниЗаПотенциаленКлиент[Прогноза \nЗатвори] <>\"\",IF(ДанниЗаПотенциаленКлиент[Прогноза \nЗатвори] = \"декември\",ДанниЗаПотенциаленКлиент[Претеглена \nПрогноза],0),\"\"),\"\")","v":""}]
[null,{"$f":"IFERROR(IF(AND(ДанниЗаПотенциаленКлиент[Име на потенциален клиент] <> \"\", ROW(ПрогнозниПродажби[Име на потенциален клиент])<>ПоследенЗапис),ДанниЗаПотенциаленКлиент[Име на потенциален клиент], \"\"),\"\")","v":""},{"$f":"IFERROR(IF(ДанниЗаПотенциаленКлиент[Прогноза \nЗатвори] <>\"\",IF(ДанниЗаПотенциаленКлиент[Прогноза \nЗатвори]= \"януари\",ДанниЗаПотенциаленКлиент[Претеглена \nПрогноза],0),\"\"),\"\")","v":""},{"$f":"IFERROR(IF(ДанниЗаПотенциаленКлиент[Прогноза \nЗатвори] <>\"\",IF(ДанниЗаПотенциаленКлиент[Прогноза \nЗатвори] = \"февруари\",ДанниЗаПотенциаленКлиент[Претеглена \nПрогноза],0),\"\"),\"\")","v":""},{"$f":"IFERROR(IF(ДанниЗаПотенциаленКлиент[Прогноза \nЗатвори] <>\"\",IF(ДанниЗаПотенциаленКлиент[Прогноза \nЗатвори] = \"март\",ДанниЗаПотенциаленКлиент[Претеглена \nПрогноза],0),\"\"),\"\")","v":""},{"$f":"IFERROR(IF(ДанниЗаПотенциаленКлиент[Прогноза \nЗатвори] <>\"\",IF(ДанниЗаПотенциаленКлиент[Прогноза \nЗатвори] = \"април\",ДанниЗаПотенциаленКлиент[Претеглена \nПрогноза],0),\"\"),\"\")","v":""},{"$f":"IFERROR(IF(ДанниЗаПотенциаленКлиент[Прогноза \nЗатвори] <>\"\",IF(ДанниЗаПотенциаленКлиент[Прогноза \nЗатвори] = \"май\",ДанниЗаПотенциаленКлиент[Претеглена \nПрогноза],0),\"\"),\"\")","v":""},{"$f":"IFERROR(IF(ДанниЗаПотенциаленКлиент[Прогноза \nЗатвори] <>\"\",IF(ДанниЗаПотенциаленКлиент[Прогноза \nЗатвори] = \"юни\",ДанниЗаПотенциаленКлиент[Претеглена \nПрогноза],0),\"\"),\"\")","v":""},{"$f":"IFERROR(IF(ДанниЗаПотенциаленКлиент[Прогноза \nЗатвори] <>\"\",IF(ДанниЗаПотенциаленКлиент[Прогноза \nЗатвори] = \"юли\",ДанниЗаПотенциаленКлиент[Претеглена \nПрогноза],0),\"\"),\"\")","v":""},{"$f":"IFERROR(IF(ДанниЗаПотенциаленКлиент[Прогноза \nЗатвори] <>\"\",IF(ДанниЗаПотенциаленКлиент[Прогноза \nЗатвори] = \"август\",ДанниЗаПотенциаленКлиент[Претеглена \nПрогноза],0),\"\"),\"\")","v":""},{"$f":"IFERROR(IF(ДанниЗаПотенциаленКлиент[Прогноза \nЗатвори] <>\"\",IF(ДанниЗаПотенциаленКлиент[Прогноза \nЗатвори] = \"септември\",ДанниЗаПотенциаленКлиент[Претеглена \nПрогноза],0),\"\"),\"\")","v":""},{"$f":"IFERROR(IF(ДанниЗаПотенциаленКлиент[Прогноза \nЗатвори] <>\"\",IF(ДанниЗаПотенциаленКлиент[Прогноза \nЗатвори] = \"октомври\",ДанниЗаПотенциаленКлиент[Претеглена \nПрогноза],0),\"\"),\"\")","v":""},{"$f":"IFERROR(IF(ДанниЗаПотенциаленКлиент[Прогноза \nЗатвори] <>\"\",IF(ДанниЗаПотенциаленКлиент[Прогноза \nЗатвори] = \"ноември\",ДанниЗаПотенциаленКлиент[Претеглена \nПрогноза],0),\"\"),\"\")","v":""},{"$f":"IFERROR(IF(ДанниЗаПотенциаленКлиент[Прогноза \nЗатвори] <>\"\",IF(ДанниЗаПотенциаленКлиент[Прогноза \nЗатвори] = \"декември\",ДанниЗаПотенциаленКлиент[Претеглена \nПрогноза],0),\"\"),\"\")","v":""}]
[null,{"$f":"IFERROR(IF(AND(ДанниЗаПотенциаленКлиент[Име на потенциален клиент] <> \"\", ROW(ПрогнозниПродажби[Име на потенциален клиент])<>ПоследенЗапис),ДанниЗаПотенциаленКлиент[Име на потенциален клиент], \"\"),\"\")","v":""},{"$f":"IFERROR(IF(ДанниЗаПотенциаленКлиент[Прогноза \nЗатвори] <>\"\",IF(ДанниЗаПотенциаленКлиент[Прогноза \nЗатвори]= \"януари\",ДанниЗаПотенциаленКлиент[Претеглена \nПрогноза],0),\"\"),\"\")","v":""},{"$f":"IFERROR(IF(ДанниЗаПотенциаленКлиент[Прогноза \nЗатвори] <>\"\",IF(ДанниЗаПотенциаленКлиент[Прогноза \nЗатвори] = \"февруари\",ДанниЗаПотенциаленКлиент[Претеглена \nПрогноза],0),\"\"),\"\")","v":""},{"$f":"IFERROR(IF(ДанниЗаПотенциаленКлиент[Прогноза \nЗатвори] <>\"\",IF(ДанниЗаПотенциаленКлиент[Прогноза \nЗатвори] = \"март\",ДанниЗаПотенциаленКлиент[Претеглена \nПрогноза],0),\"\"),\"\")","v":""},{"$f":"IFERROR(IF(ДанниЗаПотенциаленКлиент[Прогноза \nЗатвори] <>\"\",IF(ДанниЗаПотенциаленКлиент[Прогноза \nЗатвори] = \"април\",ДанниЗаПотенциаленКлиент[Претеглена \nПрогноза],0),\"\"),\"\")","v":""},{"$f":"IFERROR(IF(ДанниЗаПотенциаленКлиент[Прогноза \nЗатвори] <>\"\",IF(ДанниЗаПотенциаленКлиент[Прогноза \nЗатвори] = \"май\",ДанниЗаПотенциаленКлиент[Претеглена \nПрогноза],0),\"\"),\"\")","v":""},{"$f":"IFERROR(IF(ДанниЗаПотенциаленКлиент[Прогноза \nЗатвори] <>\"\",IF(ДанниЗаПотенциаленКлиент[Прогноза \nЗатвори] = \"юни\",ДанниЗаПотенциаленКлиент[Претеглена \nПрогноза],0),\"\"),\"\")","v":""},{"$f":"IFERROR(IF(ДанниЗаПотенциаленКлиент[Прогноза \nЗатвори] <>\"\",IF(ДанниЗаПотенциаленКлиент[Прогноза \nЗатвори] = \"юли\",ДанниЗаПотенциаленКлиент[Претеглена \nПрогноза],0),\"\"),\"\")","v":""},{"$f":"IFERROR(IF(ДанниЗаПотенциаленКлиент[Прогноза \nЗатвори] <>\"\",IF(ДанниЗаПотенциаленКлиент[Прогноза \nЗатвори] = \"август\",ДанниЗаПотенциаленКлиент[Претеглена \nПрогноза],0),\"\"),\"\")","v":""},{"$f":"IFERROR(IF(ДанниЗаПотенциаленКлиент[Прогноза \nЗатвори] <>\"\",IF(ДанниЗаПотенциаленКлиент[Прогноза \nЗатвори] = \"септември\",ДанниЗаПотенциаленКлиент[Претеглена \nПрогноза],0),\"\"),\"\")","v":""},{"$f":"IFERROR(IF(ДанниЗаПотенциаленКлиент[Прогноза \nЗатвори] <>\"\",IF(ДанниЗаПотенциаленКлиент[Прогноза \nЗатвори] = \"октомври\",ДанниЗаПотенциаленКлиент[Претеглена \nПрогноза],0),\"\"),\"\")","v":""},{"$f":"IFERROR(IF(ДанниЗаПотенциаленКлиент[Прогноза \nЗатвори] <>\"\",IF(ДанниЗаПотенциаленКлиент[Прогноза \nЗатвори] = \"ноември\",ДанниЗаПотенциаленКлиент[Претеглена \nПрогноза],0),\"\"),\"\")","v":""},{"$f":"IFERROR(IF(ДанниЗаПотенциаленКлиент[Прогноза \nЗатвори] <>\"\",IF(ДанниЗаПотенциаленКлиент[Прогноза \nЗатвори] = \"декември\",ДанниЗаПотенциаленКлиент[Претеглена \nПрогноза],0),\"\"),\"\")","v":""}]
[null,{"$f":"IFERROR(IF(AND(ДанниЗаПотенциаленКлиент[Име на потенциален клиент] <> \"\", ROW(ПрогнозниПродажби[Име на потенциален клиент])<>ПоследенЗапис),ДанниЗаПотенциаленКлиент[Име на потенциален клиент], \"\"),\"\")","v":""},{"$f":"IFERROR(IF(ДанниЗаПотенциаленКлиент[Прогноза \nЗатвори] <>\"\",IF(ДанниЗаПотенциаленКлиент[Прогноза \nЗатвори]= \"януари\",ДанниЗаПотенциаленКлиент[Претеглена \nПрогноза],0),\"\"),\"\")","v":""},{"$f":"IFERROR(IF(ДанниЗаПотенциаленКлиент[Прогноза \nЗатвори] <>\"\",IF(ДанниЗаПотенциаленКлиент[Прогноза \nЗатвори] = \"февруари\",ДанниЗаПотенциаленКлиент[Претеглена \nПрогноза],0),\"\"),\"\")","v":""},{"$f":"IFERROR(IF(ДанниЗаПотенциаленКлиент[Прогноза \nЗатвори] <>\"\",IF(ДанниЗаПотенциаленКлиент[Прогноза \nЗатвори] = \"март\",ДанниЗаПотенциаленКлиент[Претеглена \nПрогноза],0),\"\"),\"\")","v":""},{"$f":"IFERROR(IF(ДанниЗаПотенциаленКлиент[Прогноза \nЗатвори] <>\"\",IF(ДанниЗаПотенциаленКлиент[Прогноза \nЗатвори] = \"април\",ДанниЗаПотенциаленКлиент[Претеглена \nПрогноза],0),\"\"),\"\")","v":""},{"$f":"IFERROR(IF(ДанниЗаПотенциаленКлиент[Прогноза \nЗатвори] <>\"\",IF(ДанниЗаПотенциаленКлиент[Прогноза \nЗатвори] = \"май\",ДанниЗаПотенциаленКлиент[Претеглена \nПрогноза],0),\"\"),\"\")","v":""},{"$f":"IFERROR(IF(ДанниЗаПотенциаленКлиент[Прогноза \nЗатвори] <>\"\",IF(ДанниЗаПотенциаленКлиент[Прогноза \nЗатвори] = \"юни\",ДанниЗаПотенциаленКлиент[Претеглена \nПрогноза],0),\"\"),\"\")","v":""},{"$f":"IFERROR(IF(ДанниЗаПотенциаленКлиент[Прогноза \nЗатвори] <>\"\",IF(ДанниЗаПотенциаленКлиент[Прогноза \nЗатвори] = \"юли\",ДанниЗаПотенциаленКлиент[Претеглена \nПрогноза],0),\"\"),\"\")","v":""},{"$f":"IFERROR(IF(ДанниЗаПотенциаленКлиент[Прогноза \nЗатвори] <>\"\",IF(ДанниЗаПотенциаленКлиент[Прогноза \nЗатвори] = \"август\",ДанниЗаПотенциаленКлиент[Претеглена \nПрогноза],0),\"\"),\"\")","v":""},{"$f":"IFERROR(IF(ДанниЗаПотенциаленКлиент[Прогноза \nЗатвори] <>\"\",IF(ДанниЗаПотенциаленКлиент[Прогноза \nЗатвори] = \"септември\",ДанниЗаПотенциаленКлиент[Претеглена \nПрогноза],0),\"\"),\"\")","v":""},{"$f":"IFERROR(IF(ДанниЗаПотенциаленКлиент[Прогноза \nЗатвори] <>\"\",IF(ДанниЗаПотенциаленКлиент[Прогноза \nЗатвори] = \"октомври\",ДанниЗаПотенциаленКлиент[Претеглена \nПрогноза],0),\"\"),\"\")","v":""},{"$f":"IFERROR(IF(ДанниЗаПотенциаленКлиент[Прогноза \nЗатвори] <>\"\",IF(ДанниЗаПотенциаленКлиент[Прогноза \nЗатвори] = \"ноември\",ДанниЗаПотенциаленКлиент[Претеглена \nПрогноза],0),\"\"),\"\")","v":""},{"$f":"IFERROR(IF(ДанниЗаПотенциаленКлиент[Прогноза \nЗатвори] <>\"\",IF(ДанниЗаПотенциаленКлиент[Прогноза \nЗатвори] = \"декември\",ДанниЗаПотенциаленКлиент[Претеглена \nПрогноза],0),\"\"),\"\")","v":""}]
[null,{"$f":"IFERROR(IF(AND(ДанниЗаПотенциаленКлиент[Име на потенциален клиент] <> \"\", ROW(ПрогнозниПродажби[Име на потенциален клиент])<>ПоследенЗапис),ДанниЗаПотенциаленКлиент[Име на потенциален клиент], \"\"),\"\")","v":""},{"$f":"IFERROR(IF(ДанниЗаПотенциаленКлиент[Прогноза \nЗатвори] <>\"\",IF(ДанниЗаПотенциаленКлиент[Прогноза \nЗатвори]= \"януари\",ДанниЗаПотенциаленКлиент[Претеглена \nПрогноза],0),\"\"),\"\")","v":""},{"$f":"IFERROR(IF(ДанниЗаПотенциаленКлиент[Прогноза \nЗатвори] <>\"\",IF(ДанниЗаПотенциаленКлиент[Прогноза \nЗатвори] = \"февруари\",ДанниЗаПотенциаленКлиент[Претеглена \nПрогноза],0),\"\"),\"\")","v":""},{"$f":"IFERROR(IF(ДанниЗаПотенциаленКлиент[Прогноза \nЗатвори] <>\"\",IF(ДанниЗаПотенциаленКлиент[Прогноза \nЗатвори] = \"март\",ДанниЗаПотенциаленКлиент[Претеглена \nПрогноза],0),\"\"),\"\")","v":""},{"$f":"IFERROR(IF(ДанниЗаПотенциаленКлиент[Прогноза \nЗатвори] <>\"\",IF(ДанниЗаПотенциаленКлиент[Прогноза \nЗатвори] = \"април\",ДанниЗаПотенциаленКлиент[Претеглена \nПрогноза],0),\"\"),\"\")","v":""},{"$f":"IFERROR(IF(ДанниЗаПотенциаленКлиент[Прогноза \nЗатвори] <>\"\",IF(ДанниЗаПотенциаленКлиент[Прогноза \nЗатвори] = \"май\",ДанниЗаПотенциаленКлиент[Претеглена \nПрогноза],0),\"\"),\"\")","v":""},{"$f":"IFERROR(IF(ДанниЗаПотенциаленКлиент[Прогноза \nЗатвори] <>\"\",IF(ДанниЗаПотенциаленКлиент[Прогноза \nЗатвори] = \"юни\",ДанниЗаПотенциаленКлиент[Претеглена \nПрогноза],0),\"\"),\"\")","v":""},{"$f":"IFERROR(IF(ДанниЗаПотенциаленКлиент[Прогноза \nЗатвори] <>\"\",IF(ДанниЗаПотенциаленКлиент[Прогноза \nЗатвори] = \"юли\",ДанниЗаПотенциаленКлиент[Претеглена \nПрогноза],0),\"\"),\"\")","v":""},{"$f":"IFERROR(IF(ДанниЗаПотенциаленКлиент[Прогноза \nЗатвори] <>\"\",IF(ДанниЗаПотенциаленКлиент[Прогноза \nЗатвори] = \"август\",ДанниЗаПотенциаленКлиент[Претеглена \nПрогноза],0),\"\"),\"\")","v":""},{"$f":"IFERROR(IF(ДанниЗаПотенциаленКлиент[Прогноза \nЗатвори] <>\"\",IF(ДанниЗаПотенциаленКлиент[Прогноза \nЗатвори] = \"септември\",ДанниЗаПотенциаленКлиент[Претеглена \nПрогноза],0),\"\"),\"\")","v":""},{"$f":"IFERROR(IF(ДанниЗаПотенциаленКлиент[Прогноза \nЗатвори] <>\"\",IF(ДанниЗаПотенциаленКлиент[Прогноза \nЗатвори] = \"октомври\",ДанниЗаПотенциаленКлиент[Претеглена \nПрогноза],0),\"\"),\"\")","v":""},{"$f":"IFERROR(IF(ДанниЗаПотенциаленКлиент[Прогноза \nЗатвори] <>\"\",IF(ДанниЗаПотенциаленКлиент[Прогноза \nЗатвори] = \"ноември\",ДанниЗаПотенциаленКлиент[Претеглена \nПрогноза],0),\"\"),\"\")","v":""},{"$f":"IFERROR(IF(ДанниЗаПотенциаленКлиент[Прогноза \nЗатвори] <>\"\",IF(ДанниЗаПотенциаленКлиент[Прогноза \nЗатвори] = \"декември\",ДанниЗаПотенциаленКлиент[Претеглена \nПрогноза],0),\"\"),\"\")","v":""}]
[null,{"$f":"IFERROR(IF(AND(ДанниЗаПотенциаленКлиент[Име на потенциален клиент] <> \"\", ROW(ПрогнозниПродажби[Име на потенциален клиент])<>ПоследенЗапис),ДанниЗаПотенциаленКлиент[Име на потенциален клиент], \"\"),\"\")","v":""},{"$f":"IFERROR(IF(ДанниЗаПотенциаленКлиент[Прогноза \nЗатвори] <>\"\",IF(ДанниЗаПотенциаленКлиент[Прогноза \nЗатвори]= \"януари\",ДанниЗаПотенциаленКлиент[Претеглена \nПрогноза],0),\"\"),\"\")","v":""},{"$f":"IFERROR(IF(ДанниЗаПотенциаленКлиент[Прогноза \nЗатвори] <>\"\",IF(ДанниЗаПотенциаленКлиент[Прогноза \nЗатвори] = \"февруари\",ДанниЗаПотенциаленКлиент[Претеглена \nПрогноза],0),\"\"),\"\")","v":""},{"$f":"IFERROR(IF(ДанниЗаПотенциаленКлиент[Прогноза \nЗатвори] <>\"\",IF(ДанниЗаПотенциаленКлиент[Прогноза \nЗатвори] = \"март\",ДанниЗаПотенциаленКлиент[Претеглена \nПрогноза],0),\"\"),\"\")","v":""},{"$f":"IFERROR(IF(ДанниЗаПотенциаленКлиент[Прогноза \nЗатвори] <>\"\",IF(ДанниЗаПотенциаленКлиент[Прогноза \nЗатвори] = \"април\",ДанниЗаПотенциаленКлиент[Претеглена \nПрогноза],0),\"\"),\"\")","v":""},{"$f":"IFERROR(IF(ДанниЗаПотенциаленКлиент[Прогноза \nЗатвори] <>\"\",IF(ДанниЗаПотенциаленКлиент[Прогноза \nЗатвори] = \"май\",ДанниЗаПотенциаленКлиент[Претеглена \nПрогноза],0),\"\"),\"\")","v":""},{"$f":"IFERROR(IF(ДанниЗаПотенциаленКлиент[Прогноза \nЗатвори] <>\"\",IF(ДанниЗаПотенциаленКлиент[Прогноза \nЗатвори] = \"юни\",ДанниЗаПотенциаленКлиент[Претеглена \nПрогноза],0),\"\"),\"\")","v":""},{"$f":"IFERROR(IF(ДанниЗаПотенциаленКлиент[Прогноза \nЗатвори] <>\"\",IF(ДанниЗаПотенциаленКлиент[Прогноза \nЗатвори] = \"юли\",ДанниЗаПотенциаленКлиент[Претеглена \nПрогноза],0),\"\"),\"\")","v":""},{"$f":"IFERROR(IF(ДанниЗаПотенциаленКлиент[Прогноза \nЗатвори] <>\"\",IF(ДанниЗаПотенциаленКлиент[Прогноза \nЗатвори] = \"август\",ДанниЗаПотенциаленКлиент[Претеглена \nПрогноза],0),\"\"),\"\")","v":""},{"$f":"IFERROR(IF(ДанниЗаПотенциаленКлиент[Прогноза \nЗатвори] <>\"\",IF(ДанниЗаПотенциаленКлиент[Прогноза \nЗатвори] = \"септември\",ДанниЗаПотенциаленКлиент[Претеглена \nПрогноза],0),\"\"),\"\")","v":""},{"$f":"IFERROR(IF(ДанниЗаПотенциаленКлиент[Прогноза \nЗатвори] <>\"\",IF(ДанниЗаПотенциаленКлиент[Прогноза \nЗатвори] = \"октомври\",ДанниЗаПотенциаленКлиент[Претеглена \nПрогноза],0),\"\"),\"\")","v":""},{"$f":"IFERROR(IF(ДанниЗаПотенциаленКлиент[Прогноза \nЗатвори] <>\"\",IF(ДанниЗаПотенциаленКлиент[Прогноза \nЗатвори] = \"ноември\",ДанниЗаПотенциаленКлиент[Претеглена \nПрогноза],0),\"\"),\"\")","v":""},{"$f":"IFERROR(IF(ДанниЗаПотенциаленКлиент[Прогноза \nЗатвори] <>\"\",IF(ДанниЗаПотенциаленКлиент[Прогноза \nЗатвори] = \"декември\",ДанниЗаПотенциаленКлиент[Претеглена \nПрогноза],0),\"\"),\"\")","v":""}]
[null,{"$f":"IFERROR(IF(AND(ДанниЗаПотенциаленКлиент[Име на потенциален клиент] <> \"\", ROW(ПрогнозниПродажби[Име на потенциален клиент])<>ПоследенЗапис),ДанниЗаПотенциаленКлиент[Име на потенциален клиент], \"\"),\"\")","v":""},{"$f":"IFERROR(IF(ДанниЗаПотенциаленКлиент[Прогноза \nЗатвори] <>\"\",IF(ДанниЗаПотенциаленКлиент[Прогноза \nЗатвори]= \"януари\",ДанниЗаПотенциаленКлиент[Претеглена \nПрогноза],0),\"\"),\"\")","v":""},{"$f":"IFERROR(IF(ДанниЗаПотенциаленКлиент[Прогноза \nЗатвори] <>\"\",IF(ДанниЗаПотенциаленКлиент[Прогноза \nЗатвори] = \"февруари\",ДанниЗаПотенциаленКлиент[Претеглена \nПрогноза],0),\"\"),\"\")","v":""},{"$f":"IFERROR(IF(ДанниЗаПотенциаленКлиент[Прогноза \nЗатвори] <>\"\",IF(ДанниЗаПотенциаленКлиент[Прогноза \nЗатвори] = \"март\",ДанниЗаПотенциаленКлиент[Претеглена \nПрогноза],0),\"\"),\"\")","v":""},{"$f":"IFERROR(IF(ДанниЗаПотенциаленКлиент[Прогноза \nЗатвори] <>\"\",IF(ДанниЗаПотенциаленКлиент[Прогноза \nЗатвори] = \"април\",ДанниЗаПотенциаленКлиент[Претеглена \nПрогноза],0),\"\"),\"\")","v":""},{"$f":"IFERROR(IF(ДанниЗаПотенциаленКлиент[Прогноза \nЗатвори] <>\"\",IF(ДанниЗаПотенциаленКлиент[Прогноза \nЗатвори] = \"май\",ДанниЗаПотенциаленКлиент[Претеглена \nПрогноза],0),\"\"),\"\")","v":""},{"$f":"IFERROR(IF(ДанниЗаПотенциаленКлиент[Прогноза \nЗатвори] <>\"\",IF(ДанниЗаПотенциаленКлиент[Прогноза \nЗатвори] = \"юни\",ДанниЗаПотенциаленКлиент[Претеглена \nПрогноза],0),\"\"),\"\")","v":""},{"$f":"IFERROR(IF(ДанниЗаПотенциаленКлиент[Прогноза \nЗатвори] <>\"\",IF(ДанниЗаПотенциаленКлиент[Прогноза \nЗатвори] = \"юли\",ДанниЗаПотенциаленКлиент[Претеглена \nПрогноза],0),\"\"),\"\")","v":""},{"$f":"IFERROR(IF(ДанниЗаПотенциаленКлиент[Прогноза \nЗатвори] <>\"\",IF(ДанниЗаПотенциаленКлиент[Прогноза \nЗатвори] = \"август\",ДанниЗаПотенциаленКлиент[Претеглена \nПрогноза],0),\"\"),\"\")","v":""},{"$f":"IFERROR(IF(ДанниЗаПотенциаленКлиент[Прогноза \nЗатвори] <>\"\",IF(ДанниЗаПотенциаленКлиент[Прогноза \nЗатвори] = \"септември\",ДанниЗаПотенциаленКлиент[Претеглена \nПрогноза],0),\"\"),\"\")","v":""},{"$f":"IFERROR(IF(ДанниЗаПотенциаленКлиент[Прогноза \nЗатвори] <>\"\",IF(ДанниЗаПотенциаленКлиент[Прогноза \nЗатвори] = \"октомври\",ДанниЗаПотенциаленКлиент[Претеглена \nПрогноза],0),\"\"),\"\")","v":""},{"$f":"IFERROR(IF(ДанниЗаПотенциаленКлиент[Прогноза \nЗатвори] <>\"\",IF(ДанниЗаПотенциаленКлиент[Прогноза \nЗатвори] = \"ноември\",ДанниЗаПотенциаленКлиент[Претеглена \nПрогноза],0),\"\"),\"\")","v":""},{"$f":"IFERROR(IF(ДанниЗаПотенциаленКлиент[Прогноза \nЗатвори] <>\"\",IF(ДанниЗаПотенциаленКлиент[Прогноза \nЗатвори] = \"декември\",ДанниЗаПотенциаленКлиент[Претеглена \nПрогноза],0),\"\"),\"\")","v":""}]
[null,{"$f":"IFERROR(IF(AND(ДанниЗаПотенциаленКлиент[Име на потенциален клиент] <> \"\", ROW(ПрогнозниПродажби[Име на потенциален клиент])<>ПоследенЗапис),ДанниЗаПотенциаленКлиент[Име на потенциален клиент], \"\"),\"\")","v":""},{"$f":"IFERROR(IF(ДанниЗаПотенциаленКлиент[Прогноза \nЗатвори] <>\"\",IF(ДанниЗаПотенциаленКлиент[Прогноза \nЗатвори]= \"януари\",ДанниЗаПотенциаленКлиент[Претеглена \nПрогноза],0),\"\"),\"\")","v":""},{"$f":"IFERROR(IF(ДанниЗаПотенциаленКлиент[Прогноза \nЗатвори] <>\"\",IF(ДанниЗаПотенциаленКлиент[Прогноза \nЗатвори] = \"февруари\",ДанниЗаПотенциаленКлиент[Претеглена \nПрогноза],0),\"\"),\"\")","v":""},{"$f":"IFERROR(IF(ДанниЗаПотенциаленКлиент[Прогноза \nЗатвори] <>\"\",IF(ДанниЗаПотенциаленКлиент[Прогноза \nЗатвори] = \"март\",ДанниЗаПотенциаленКлиент[Претеглена \nПрогноза],0),\"\"),\"\")","v":""},{"$f":"IFERROR(IF(ДанниЗаПотенциаленКлиент[Прогноза \nЗатвори] <>\"\",IF(ДанниЗаПотенциаленКлиент[Прогноза \nЗатвори] = \"април\",ДанниЗаПотенциаленКлиент[Претеглена \nПрогноза],0),\"\"),\"\")","v":""},{"$f":"IFERROR(IF(ДанниЗаПотенциаленКлиент[Прогноза \nЗатвори] <>\"\",IF(ДанниЗаПотенциаленКлиент[Прогноза \nЗатвори] = \"май\",ДанниЗаПотенциаленКлиент[Претеглена \nПрогноза],0),\"\"),\"\")","v":""},{"$f":"IFERROR(IF(ДанниЗаПотенциаленКлиент[Прогноза \nЗатвори] <>\"\",IF(ДанниЗаПотенциаленКлиент[Прогноза \nЗатвори] = \"юни\",ДанниЗаПотенциаленКлиент[Претеглена \nПрогноза],0),\"\"),\"\")","v":""},{"$f":"IFERROR(IF(ДанниЗаПотенциаленКлиент[Прогноза \nЗатвори] <>\"\",IF(ДанниЗаПотенциаленКлиент[Прогноза \nЗатвори] = \"юли\",ДанниЗаПотенциаленКлиент[Претеглена \nПрогноза],0),\"\"),\"\")","v":""},{"$f":"IFERROR(IF(ДанниЗаПотенциаленКлиент[Прогноза \nЗатвори] <>\"\",IF(ДанниЗаПотенциаленКлиент[Прогноза \nЗатвори] = \"август\",ДанниЗаПотенциаленКлиент[Претеглена \nПрогноза],0),\"\"),\"\")","v":""},{"$f":"IFERROR(IF(ДанниЗаПотенциаленКлиент[Прогноза \nЗатвори] <>\"\",IF(ДанниЗаПотенциаленКлиент[Прогноза \nЗатвори] = \"септември\",ДанниЗаПотенциаленКлиент[Претеглена \nПрогноза],0),\"\"),\"\")","v":""},{"$f":"IFERROR(IF(ДанниЗаПотенциаленКлиент[Прогноза \nЗатвори] <>\"\",IF(ДанниЗаПотенциаленКлиент[Прогноза \nЗатвори] = \"октомври\",ДанниЗаПотенциаленКлиент[Претеглена \nПрогноза],0),\"\"),\"\")","v":""},{"$f":"IFERROR(IF(ДанниЗаПотенциаленКлиент[Прогноза \nЗатвори] <>\"\",IF(ДанниЗаПотенциаленКлиент[Прогноза \nЗатвори] = \"ноември\",ДанниЗаПотенциаленКлиент[Претеглена \nПрогноза],0),\"\"),\"\")","v":""},{"$f":"IFERROR(IF(ДанниЗаПотенциаленКлиент[Прогноза \nЗатвори] <>\"\",IF(ДанниЗаПотенциаленКлиент[Прогноза \nЗатвори] = \"декември\",ДанниЗаПотенциаленКлиент[Претеглена \nПрогноза],0),\"\"),\"\")","v":""}]
[null,{"$f":"IFERROR(IF(AND(ДанниЗаПотенциаленКлиент[Име на потенциален клиент] <> \"\", ROW(ПрогнозниПродажби[Име на потенциален клиент])<>ПоследенЗапис),ДанниЗаПотенциаленКлиент[Име на потенциален клиент], \"\"),\"\")","v":""},{"$f":"IFERROR(IF(ДанниЗаПотенциаленКлиент[Прогноза \nЗатвори] <>\"\",IF(ДанниЗаПотенциаленКлиент[Прогноза \nЗатвори]= \"януари\",ДанниЗаПотенциаленКлиент[Претеглена \nПрогноза],0),\"\"),\"\")","v":""},{"$f":"IFERROR(IF(ДанниЗаПотенциаленКлиент[Прогноза \nЗатвори] <>\"\",IF(ДанниЗаПотенциаленКлиент[Прогноза \nЗатвори] = \"февруари\",ДанниЗаПотенциаленКлиент[Претеглена \nПрогноза],0),\"\"),\"\")","v":""},{"$f":"IFERROR(IF(ДанниЗаПотенциаленКлиент[Прогноза \nЗатвори] <>\"\",IF(ДанниЗаПотенциаленКлиент[Прогноза \nЗатвори] = \"март\",ДанниЗаПотенциаленКлиент[Претеглена \nПрогноза],0),\"\"),\"\")","v":""},{"$f":"IFERROR(IF(ДанниЗаПотенциаленКлиент[Прогноза \nЗатвори] <>\"\",IF(ДанниЗаПотенциаленКлиент[Прогноза \nЗатвори] = \"април\",ДанниЗаПотенциаленКлиент[Претеглена \nПрогноза],0),\"\"),\"\")","v":""},{"$f":"IFERROR(IF(ДанниЗаПотенциаленКлиент[Прогноза \nЗатвори] <>\"\",IF(ДанниЗаПотенциаленКлиент[Прогноза \nЗатвори] = \"май\",ДанниЗаПотенциаленКлиент[Претеглена \nПрогноза],0),\"\"),\"\")","v":""},{"$f":"IFERROR(IF(ДанниЗаПотенциаленКлиент[Прогноза \nЗатвори] <>\"\",IF(ДанниЗаПотенциаленКлиент[Прогноза \nЗатвори] = \"юни\",ДанниЗаПотенциаленКлиент[Претеглена \nПрогноза],0),\"\"),\"\")","v":""},{"$f":"IFERROR(IF(ДанниЗаПотенциаленКлиент[Прогноза \nЗатвори] <>\"\",IF(ДанниЗаПотенциаленКлиент[Прогноза \nЗатвори] = \"юли\",ДанниЗаПотенциаленКлиент[Претеглена \nПрогноза],0),\"\"),\"\")","v":""},{"$f":"IFERROR(IF(ДанниЗаПотенциаленКлиент[Прогноза \nЗатвори] <>\"\",IF(ДанниЗаПотенциаленКлиент[Прогноза \nЗатвори] = \"август\",ДанниЗаПотенциаленКлиент[Претеглена \nПрогноза],0),\"\"),\"\")","v":""},{"$f":"IFERROR(IF(ДанниЗаПотенциаленКлиент[Прогноза \nЗатвори] <>\"\",IF(ДанниЗаПотенциаленКлиент[Прогноза \nЗатвори] = \"септември\",ДанниЗаПотенциаленКлиент[Претеглена \nПрогноза],0),\"\"),\"\")","v":""},{"$f":"IFERROR(IF(ДанниЗаПотенциаленКлиент[Прогноза \nЗатвори] <>\"\",IF(ДанниЗаПотенциаленКлиент[Прогноза \nЗатвори] = \"октомври\",ДанниЗаПотенциаленКлиент[Претеглена \nПрогноза],0),\"\"),\"\")","v":""},{"$f":"IFERROR(IF(ДанниЗаПотенциаленКлиент[Прогноза \nЗатвори] <>\"\",IF(ДанниЗаПотенциаленКлиент[Прогноза \nЗатвори] = \"ноември\",ДанниЗаПотенциаленКлиент[Претеглена \nПрогноза],0),\"\"),\"\")","v":""},{"$f":"IFERROR(IF(ДанниЗаПотенциаленКлиент[Прогноза \nЗатвори] <>\"\",IF(ДанниЗаПотенциаленКлиент[Прогноза \nЗатвори] = \"декември\",ДанниЗаПотенциаленКлиент[Претеглена \nПрогноза],0),\"\"),\"\")","v":""}]
[null,"Общо",{"$f":"SUBTOTAL(109,ПрогнозниПродажби[януари \nПрогноза])","v":{"v":270000,"d":"270,000 лв."}},{"$f":"SUBTOTAL(109,ПрогнозниПродажби[февруари \nПрогноза])","v":{"v":20000,"d":"20,000 лв."}},{"$f":"SUBTOTAL(109,ПрогнозниПродажби[март \nПрогноза])","v":{"v":20000,"d":"20,000 лв."}},{"$f":"SUBTOTAL(109,ПрогнозниПродажби[април \nПрогноза])","v":{"v":0,"d":"0 лв."}},{"$f":"SUBTOTAL(109,ПрогнозниПродажби[май \nПрогноза])","v":{"v":0,"d":"0 лв."}},{"$f":"SUBTOTAL(109,ПрогнозниПродажби[юни \nПрогноза])","v":{"v":0,"d":"0 лв."}},{"$f":"SUBTOTAL(109,ПрогнозниПродажби[юли \nПрогноза])","v":{"v":0,"d":"0 лв."}},{"$f":"SUBTOTAL(109,ПрогнозниПродажби[август \nПрогноза])","v":{"v":0,"d":"0 лв."}},{"$f":"SUBTOTAL(109,ПрогнозниПродажби[септември \nПрогноза])","v":{"v":0,"d":"0 лв."}},{"$f":"SUBTOTAL(109,ПрогнозниПродажби[октомври \nПрогноза])","v":{"v":0,"d":"0 лв."}},{"$f":"SUBTOTAL(109,ПрогнозниПродажби[ноември \nПрогноза])","v":{"v":0,"d":"0 лв."}},{"$f":"SUBTOTAL(109,ПрогнозниПродажби[декември \nПрогноза])","v":{"v":0,"d":"0 лв."}}]
[null,"Кумулативна сума",{"$f":"C20","v":{"v":270000,"d":"270,000 лв."}},{"$f":"C21+D20","v":{"v":290000,"d":"290,000 лв."}},{"$f":"D21+E20","v":{"v":310000,"d":"310,000 лв."}},{"$f":"E21+F20","v":{"v":310000,"d":"310,000 лв."}},{"$f":"F21+G20","v":{"v":310000,"d":"310,000 лв."}},{"$f":"G21+H20","v":{"v":310000,"d":"310,000 лв."}},{"$f":"H21+I20","v":{"v":310000,"d":"310,000 лв."}},{"$f":"I21+J20","v":{"v":310000,"d":"310,000 лв."}},{"$f":"J21+K20","v":{"v":310000,"d":"310,000 лв."}},{"$f":"K21+L20","v":{"v":310000,"d":"310,000 лв."}},{"$f":"L21+M20","v":{"v":310000,"d":"310,000 лв."}},{"$f":"M21+N20","v":{"v":310000,"d":"310,000 лв."}}]

{"sheet":"Месечна претеглена прогноза","index":2,"n_rows":3,"n_cols":2,"rows_kept":3}
[null,{"$f":"Име_на_фирма","v":"Име на фирма"}]
[null,"Месечна Претеглена прогноза"]
[null," "]